bitfinex/quotes_ETHUSD_20251107
["timestamp","ask_amount","ask_price","bid_price","bid_amount"]
[1762533794944,3.34605528,3314.6,3314.5,0.001]
[1762533795247,13.59896078,3314.6,3314.5,0.001]
[1762533795411,13.19964562,3314.6,3314.5,0.001]
[1762533796299,13.6730885,3314.6,3314.5,0.001]
[1762533796921,13.6722885,3314.6,3314.5,0.001]
[1762533797435,5.57131016,3314.6,3314.5,0.001]
[1762533797636,5.54016927,3314.6,3314.5,0.001]
[1762533797936,6.34498843,3314.6,3314.5,0.001]
[1762533798308,3.42309656,3313.9,3313.8,0.001]
[1762533798538,5.44941055,3313.9,3313.8,0.001]
[1762533798733,6.34829921,3313.9,3313.8,0.001]
[1762533799238,7.18991636,3313.9,3313.8,0.001]
[1762533799397,6.7906012,3313.9,3313.8,0.001]
[1762533800834,7.18991636,3313.9,3313.8,0.001]
[1762533801039,7.6634633,3313.9,3313.8,0.001]
[1762533802141,11.28039271,3313.6,3313.5,0.001]
[1762533802305,12.2252947,3313.6,3313.5,0.001]
[1762533802917,11.78299271,3313.6,3313.5,0.001]
[1762533803142,4.28567776,3313.6,3313.5,0.001]
[1762533803350,4.27757776,3313.6,3313.5,0.001]
[1762533803846,6.23461648,3313.6,3313.5,0.001]
[1762533804213,5.74171648,3313.6,3313.5,0.001]
[1762533804525,6.23461648,3313.6,3313.5,0.001]
[1762533804847,5.74171648,3313.6,3313.5,0.001]
[1762533805141,6.23461648,3313.6,3313.5,0.001]
[1762533806311,1.259712,3313.6,3313.5,0.001]
[1762533806505,0.4945,3314.3,3313.5,0.001]
[1762533806710,3.01786576,3313.6,3313.5,0.001]
[1762533807215,5.01218176,3313.6,3313.5,0.001]
[1762533807435,6.60985414,3313.6,3313.5,0.001]
[1762533807636,7.05215613,3313.6,3313.5,0.001]
[1762533807851,6.60985414,3313.6,3313.5,0.001]
[1762533808057,6.11865414,3313.6,3313.5,0.001]
[1762533808621,5.78785414,3313.6,3313.5,0.001]
[1762533808961,0.002,3313.9,3313.5,0.9132]
[1762533809166,3.01786576,3313.6,3313.5,0.001]
[1762533809751,3.42336976,3313.6,3313.5,0.001]
[1762533809927,5.95806427,3313.6,3313.5,0.001]
[1762533810328,6.45096427,3313.6,3313.5,0.001]
[1762533810531,5.95806427,3313.6,3313.5,0.001]
[1762533811172,3.42400742,3312.9,3312.8,0.001]
[1762533811372,6.61217909,3312.9,3312.8,0.001]
[1762533811567,7.10217909,3312.9,3312.8,0.001]
[1762533811747,6.72945427,3312.9,3312.8,0.001]
[1762533811943,1.259712,3312.9,3312.8,0.4877]
[1762533812133,4.27821542,3312.9,3312.8,0.4877]
[1762533812332,4.27821542,3312.9,3312.8,0.001]
[1762533812557,1.259712,3312.9,3312.8,0.4877]
[1762533812733,1.259712,3312.9,3312.8,0.9441]
[1762533813843,0.002,3314.3,3312.8,0.9441]
[1762533814045,0.002,3314.3,3313.3,0.4867]
[1762533814260,3.01928178,3314.3,3313.3,0.4867]
[1762533814565,3.01928178,3314.3,3313.4,0.6434]
[1762533814871,1.259712,3313.6,3313.4,0.6434]
[1762533815036,1.259712,3313.6,3313.5,0.4564]
[1762533815372,3.01782797,3313.7,3313.5,0.9431]
[1762533815583,0.002,3313.9,3313.8,3.01768362]
[1762533815782,0.002,3313.9,3313.8,3.80615198]
[1762533815940,0.002,3313.9,3313.8,4.26255198]
[1762533817059,0.002,3313.9,3313.8,4.29272881]
[1762533817278,0.002,3313.9,3313.8,4.26255198]
[1762533817484,0.002,3314.3,3313.8,4.26255198]
[1762533817485,0.002,3314.3,3314.2,3.01731941]
[1762533817684,0.002,3316.3,3314.6,1.259712]
[1762533817886,3.01566815,3316.1,3315.8,0.6737]
[1762533818048,3.01671084,3316.2,3315.8,0.6737]
[1762533818252,0.0012,3316.2,3315.8,1.1301]
[1762533818653,3.01670991,3316.2,3315.8,1.1301]
[1762533818847,0.0012,3316.2,3315.8,4.14596344]
[1762533819063,0.0012,3316.2,3316.1,3.0155906]
[1762533819378,0.005,3316.9,3316.3,3.01540873]
[1762533819550,0.005,3316.9,3316.5,3.50192689]
[1762533819749,0.0042,3316.9,3316.8,3.50165417]
[1762533819948,0.0042,3316.9,3316.8,3.95805417]
[1762533820746,0.0042,3316.9,3316.8,0.9431]
[1762533821151,0.0042,3316.9,3316.8,0.4867]
[1762533821353,0.0042,3316.9,3316.1,1.259712]
[1762533821354,0.49089535,3316.9,3316.0,0.4989]
[1762533821583,0.405504,3316.8,3316.0,0.4989]
[1762533821750,0.0042,3316.9,3316.1,0.0301559]
[1762533821955,1.259712,3316.7,3316.1,3.04568126]
[1762533822205,1.259712,3316.8,3316.2,0.4989]
[1762533822402,0.0042,3316.9,3316.6,0.4749]
[1762533822696,1.259712,3316.8,3316.6,0.4749]
[1762533822851,4.27466796,3316.8,3316.6,0.4749]
[1762533823053,4.27878962,3316.9,3316.6,0.4749]
[1762533823363,0.0042,3316.9,3316.8,0.4749]
[1762533824286,0.0042,3316.9,3316.4,0.4989]
[1762533824651,0.0042,3316.9,3316.8,0.4749]
[1762533824856,0.0042,3316.9,3316.4,3.51418607]
[1762533824857,0.0042,3316.9,3316.4,0.4989]
[1762533825052,0.002,3316.8,3316.6,3.01510865]
[1762533825250,0.002,3316.8,3316.7,3.04519552]
[1762533825457,0.002,3316.8,3316.7,4.01899552]
[1762533825656,0.002,3316.8,3316.7,3.98884507]
[1762533825852,0.002,3316.8,3316.7,4.75454393]
[1762533826280,0.002,3316.8,3316.7,4.72439348]
[1762533826698,0.0042,3316.9,3316.7,4.72439348]
[1762533826896,0.002,3317.2,3317.1,3.01468149]
[1762533827083,0.002,3317.2,3317.1,4.16878149]
[1762533827254,0.002,3317.2,3317.1,4.8871384]
[1762533827660,0.002,3317.2,3317.1,4.91728521]
[1762533827958,0.002,3317.2,3317.1,4.8871384]
[1762533828368,0.002,3317.2,3317.1,13.23428565]
[1762533828581,0.005,3317.9,3317.8,3.01404545]
[1762533828776,0.005,3317.9,3317.8,3.82049044]
[1762533828975,0.005,3317.9,3317.8,4.31939044]
[1762533829175,0.002,3318.4,3318.3,3.01359129]
[1762533829371,0.002,3319.8,3318.7,3.01322807]
[1762533829572,0.002,3319.8,3318.8,3.01313727]
[1762533829764,0.002,3319.8,3318.8,3.98693727]
[1762533830207,0.002,3319.8,3318.8,4.01706864]
[1762533830413,0.002,3319.8,3318.8,3.98693727]
[1762533831513,0.002,3319.8,3318.8,4.13733727]
[1762533831817,0.002,3319.8,3318.8,4.91266704]
[1762533832126,0.002,3319.8,3318.8,1.89952977]
[1762533832326,3.01425485,3319.8,3318.8,4.13733727]
[1762533832683,0.002,3319.8,3318.8,4.13733727]
[1762533833079,0.002,3319.8,3319.0,3.0129557]
[1762533833417,0.002,3319.8,3319.0,4.01688525]
[1762533833922,0.002,3319.8,3319.0,3.9867557]
[1762533834491,0.002,3319.8,3319.0,0.9738]
[1762533834693,0.002,3319.8,3319.0,3.9867557]
[1762533834922,0.002,3319.8,3319.0,4.40047127]
[1762533835683,0.002,3319.8,3319.0,1.38751557]
[1762533835887,0.002,3319.8,3319.0,3.9867557]
[1762533835888,3.01425829,3319.8,3319.0,3.9867557]
[1762533836126,0.002,3319.8,3319.0,3.9867557]
[1762533836631,0.002,3319.8,3319.0,0.4749]
[1762533836823,0.002,3319.8,3319.0,0.9738]
[1762533837000,0.002,3319.8,3319.0,3.9867557]
[1762533837001,3.01425375,3319.8,3319.0,3.9867557]
[1762533837321,3.01233082,3319.7,3319.0,3.9867557]
[1762533837520,3.01255175,3319.5,3319.0,0.9738]
[1762533837720,3.01255175,3319.5,3319.0,1.37248133]
[1762533837943,3.01244188,3319.6,3319.0,1.37248133]
[1762533838145,3.01425024,3319.8,3319.0,4.38543703]
[1762533838730,3.01423356,3319.8,3319.0,4.38543703]
[1762533838938,3.01423193,3319.8,3319.0,4.38543703]
[1762533839446,0.002,3319.8,3319.7,3.01232039]
[1762533839645,0.002,3319.8,3319.7,4.79901742]
[1762533839806,0.002,3319.8,3319.7,4.76889422]
[1762533840211,0.002,3319.8,3319.7,4.79901742]
[1762533840532,0.002,3320.2,3320.1,3.41746147]
[1762533840731,0.005,3320.9,3320.8,3.01132257]
[1762533841036,0.005,3320.9,3320.8,1.57608265]
[1762533841345,0.005,3320.9,3320.8,0.9738]
[1762533841670,0.005,3320.9,3320.8,0.4749]
[1762533841948,0.005,3320.9,3320.7,3.01134801]
[1762533842145,0.005,3320.9,3320.8,0.4749]
[1762533842560,0.0042,3320.9,3320.8,3.48622257]
[1762533842849,0.0042,3320.9,3320.8,4.61468707]
[1762533843053,0.0042,3320.9,3320.8,1.6033645]
[1762533843212,0.0042,3320.9,3320.8,0.4749]
[1762533843408,0.0042,3320.9,3320.6,3.01146817]
[1762533843912,0.0042,3320.9,3320.7,3.01140009]
[1762533844153,0.0042,3320.9,3320.7,3.01141325]
[1762533844410,0.0042,3320.9,3320.3,0.4787]
[1762533844654,0.0042,3320.9,3319.8,3.49088934]
[1762533844965,0.0042,3320.9,3320.5,3.01159199]
[1762533845250,0.0042,3320.9,3320.4,3.01166101]
[1762533845485,0.1843,3320.9,3319.9,0.90606632]
[1762533845688,3.01173858,3320.4,3319.7,3.01229979]
[1762533845982,0.4983,3320.6,3319.5,3.68229839]
[1762533846181,3.01177708,3320.3,3319.7,3.01226571]
[1762533846381,3.01180063,3320.3,3319.7,3.01231717]
[1762533846712,0.1843,3320.9,3319.6,0.36822971]
[1762533846878,0.4983,3320.8,3319.7,3.01232039]
[1762533847086,1.259712,3320.6,3320.0,3.01204337]
[1762533847245,0.4983,3320.8,3319.8,0.30123204]
[1762533847445,3.01171678,3320.4,3319.6,0.4787]
[1762533847783,3.01169078,3320.4,3319.8,3.01222599]
[1762533847955,3.01162813,3320.5,3319.8,3.01222599]
[1762533848155,1.758012,3320.7,3319.6,0.4787]
[1762533848470,0.0042,3320.9,3319.8,3.01222965]
[1762533848670,0.0042,3320.9,3320.4,3.01162685]
[1762533848852,0.0042,3320.9,3320.5,0.03011594]
[1762533849051,0.0042,3320.9,3319.9,3.8428635]
[1762533849052,0.1801,3320.8,3319.9,3.8428635]
[1762533849387,3.68972989,3320.8,3320.0,0.39932635]
[1762533849693,0.6784,3320.8,3320.0,3.01203985]
[1762533849886,3.6897588,3320.8,3320.1,3.01192771]
[1762533850042,0.1801,3320.8,3319.9,0.4787]
[1762533850247,0.0042,3320.9,3320.5,3.01153058]
[1762533850444,0.0042,3320.9,3320.8,3.49182257]
[1762533850750,0.0042,3320.9,3320.8,3.52193579]
[1762533850950,0.0042,3320.9,3320.8,3.49182257]
[1762533851257,0.0042,3320.9,3320.6,0.30115306]
[1762533851698,0.0827,3320.7,3320.1,3.01189041]
[1762533851861,0.0827,3320.7,3320.2,3.01186013]
[1762533852188,0.1843,3320.9,3319.8,3.01222965]
[1762533852387,0.0042,3320.9,3320.5,3.01157675]
[1762533852689,0.0042,3320.9,3320.6,0.03011503]
[1762533852962,0.0042,3320.9,3320.7,3.01134173]
[1762533853175,0.0042,3320.9,3320.8,3.04143579]
[1762533853427,0.0042,3320.9,3320.8,4.60592882]
[1762533854417,0.0042,3320.9,3320.8,4.5758156]
[1762533854614,0.0042,3320.9,3320.8,0.60529303]
[1762533854925,0.0042,3320.9,3320.8,4.00063579]
[1762533855630,0.0042,3320.9,3320.8,3.01132257]
[1762533855818,0.0042,3320.9,3320.8,3.49182257]
[1762533856001,0.0042,3320.9,3320.8,0.4805]
[1762533856338,0.0042,3320.9,3320.8,3.01132257]
[1762533856511,0.0042,3320.9,3320.8,3.80799483]
[1762533856830,0.0042,3320.9,3320.8,3.32749483]
[1762533857196,0.0042,3320.9,3320.8,3.80799483]
[1762533857492,0.0042,3320.9,3320.8,3.32749483]
[1762533857694,0.267,3320.9,3319.9,0.84283297]
[1762533857919,0.267,3320.9,3318.9,6.37732465]
[1762533857920,0.4941,3320.8,3318.9,0.1803]
[1762533858121,0.4941,3320.8,3319.5,0.6698]
[1762533858503,0.4941,3320.8,3319.8,3.01217661]
[1762533858504,3.01170339,3320.4,3319.8,3.01217661]
[1762533859003,0.4941,3320.8,3319.5,3.68223721]
[1762533859004,3.01183674,3320.3,3319.5,3.68223721]
[1762533859204,3.01183674,3320.3,3319.2,0.1504]
[1762533859205,0.405504,3320.6,3319.2,0.1504]
[1762533859407,3.0120176,3320.1,3319.4,3.01253433]
[1762533859721,3.01220703,3319.9,3319.4,0.30125343]
[1762533860231,0.405504,3320.5,3319.9,0.001]
[1762533860417,3.01204819,3320.0,3319.9,0.001]
[1762533860634,4.76496019,3320.0,3319.9,0.001]
[1762533860833,5.27316419,3320.0,3319.9,0.001]
[1762533861049,4.67762713,3319.6,3319.5,0.001]
[1762533861254,5.27352713,3319.6,3319.5,0.001]
[1762533861451,3.41818739,3319.3,3319.2,0.001]
[1762533861628,4.67789939,3319.3,3319.2,0.001]
[1762533861832,4.27275849,3318.9,3318.8,0.001]
[1762533862045,4.56535849,3318.9,3318.8,0.001]
[1762533862250,5.05975849,3318.9,3318.8,0.001]
[1762533862552,5.86702867,3318.9,3318.8,0.001]
[1762533863257,3.41891367,3318.5,3316.7,0.4787]
[1762533863432,3.42381367,3318.5,3317.3,3.01447783]
[1762533863752,3.42381367,3318.5,3317.1,0.664]
[1762533863753,0.5032,3318.5,3317.1,0.664]
[1762533864056,3.92211367,3318.5,3317.5,3.01426677]
[1762533864258,4.27802167,3318.5,3317.5,3.49300583]
[1762533864451,4.77632167,3318.5,3317.8,3.01402857]
[1762533864634,1.264612,3318.5,3317.9,3.01395394]
[1762533864964,4.27802167,3318.5,3317.8,3.01402336]
[1762533865169,4.27802167,3318.5,3317.9,3.01393885]
[1762533865320,4.27802167,3318.5,3317.8,3.0140196]
[1762533865521,1.258912,3318.5,3317.5,0.4787]
[1762533865847,1.258912,3318.5,3318.0,3.01384481]
[1762533866154,1.258912,3318.5,3318.0,3.01385249]
[1762533866532,4.38482167,3318.5,3317.5,0.4787]
[1762533866733,1.371412,3318.5,3317.5,0.4787]
[1762533866957,1.258912,3318.5,3317.5,3.49298013]
[1762533867265,1.258912,3318.5,3318.1,3.21086515]
[1762533867469,1.371412,3318.5,3318.1,0.006]
[1762533867670,1.375212,3318.5,3318.1,0.006]
[1762533868030,1.258912,3318.5,3318.1,0.006]
[1762533868227,1.258912,3318.5,3318.1,3.21086103]
[1762533868434,1.258912,3318.5,3318.1,0.1971]
[1762533868671,1.258912,3318.5,3318.1,0.006]
[1762533869051,4.87922167,3318.5,3318.1,0.006]
[1762533869383,5.66846696,3318.5,3318.1,0.006]
[1762533869565,4.87922167,3318.5,3318.1,0.006]
[1762533870352,5.28472567,3318.5,3318.1,0.006]
[1762533871370,1.258912,3318.5,3318.1,0.006]
[1762533871532,0.1801,3318.9,3318.1,0.006]
[1762533871732,0.1801,3318.9,3318.1,0.1971]
[1762533872041,4.27300998,3318.7,3318.1,3.21085876]
[1762533872261,1.259712,3318.7,3318.1,3.21085876]
[1762533872465,1.259712,3318.7,3318.1,0.1971]
[1762533872663,3.19317112,3318.9,3318.1,0.1971]
[1762533872664,3.01321683,3318.8,3318.1,0.1971]
[1762533872836,3.01337936,3318.6,3318.1,0.1971]
[1762533873866,3.01320407,3318.8,3318.2,3.01366368]
[1762533874069,4.27244094,3319.3,3318.3,3.04370757]
[1762533874271,3.01310009,3318.9,3318.4,0.30547076]
[1762533874461,3.01330779,3318.7,3318.4,0.001]
[1762533874773,3.11800967,3318.5,3318.4,0.001]
[1762533874959,0.1046,3318.5,3318.4,0.001]
[1762533875286,3.01329717,3318.7,3318.4,0.001]
[1762533875470,3.01317489,3318.8,3318.4,0.001]
[1762533875695,1.259712,3318.7,3318.4,0.001]
[1762533875892,0.896204,3319.3,3318.4,0.001]
[1762533876094,1.259712,3318.9,3318.4,0.001]
[1762533876297,0.35034122,3319.3,3318.6,3.01330922]
[1762533876503,7.05728844,3320.3,3318.4,0.4806]
[1762533876504,0.1956,3319.9,3319.2,0.6743]
[1762533876660,3.01168533,3320.4,3319.2,3.68700544]
[1762533876996,1.259712,3320.3,3319.2,3.49585793]
[1762533877168,1.259712,3319.6,3319.2,0.4831]
[1762533877359,1.259712,3319.8,3319.3,3.01267579]
[1762533877559,0.4907,3320.3,3319.2,0.9627]
[1762533877760,0.4907,3320.3,3319.2,3.49581125]
[1762533877955,3.01222154,3319.9,3319.2,3.49581125]
[1762533878196,3.01247513,3319.6,3318.9,0.1912]
[1762533878397,1.259712,3319.8,3319.1,3.01285108]
[1762533878696,3.01251562,3319.5,3318.9,3.20422389]
[1762533878901,3.01251562,3319.5,3319.0,3.01295537]
[1762533879393,3.01250853,3319.5,3319.1,0.1912]
[1762533879580,3.0126137,3319.4,3319.1,0.1912]
[1762533879774,3.01252654,3319.5,3319.1,0.1912]
[1762533880406,1.860816,3319.9,3319.1,0.1963]
[1762533880694,3.01257359,3319.5,3318.9,0.1912]
[1762533880901,3.01261458,3319.4,3318.9,0.1912]
[1762533881199,3.01246859,3319.6,3319.0,3.01295464]
[1762533881402,0.1956,3319.9,3319.0,3.63468371]
[1762533881698,0.1956,3319.9,3319.1,0.1963]
[1762533882001,3.01263037,3319.4,3319.1,0.1963]
[1762533882199,3.01265774,3319.4,3318.9,0.1912]
[1762533882383,3.01254174,3319.5,3318.9,3.57050458]
[1762533882697,3.0125983,3319.4,3318.9,1.01587277]
[1762533882878,3.01252682,3319.5,3318.9,4.02891893]
[1762533883087,4.96566279,3319.9,3319.0,3.01294501]
[1762533883410,0.6938,3319.9,3319.0,0.70419535]
[1762533883776,3.01264968,3319.4,3319.0,0.70419535]
[1762533883972,3.01254101,3319.5,3318.9,3.20423086]
[1762533884197,1.953512,3319.9,3318.9,0.6496]
[1762533884398,3.01252179,3319.5,3319.0,0.4584]
[1762533884598,3.01252179,3319.5,3318.9,3.20418458]
[1762533884774,3.01252179,3319.5,3318.9,0.1912]
[1762533884978,3.01259842,3319.4,3318.9,0.1912]
[1762533885381,1.259712,3319.7,3318.9,0.1912]
[1762533885581,3.01282348,3319.2,3318.6,3.01331812]
[1762533885822,3.01282348,3319.2,3318.5,0.6547]
[1762533885823,3.01273962,3319.3,3318.5,3.66809991]
[1762533885981,0.42719582,3319.6,3318.6,0.82530999]
[1762533886181,3.01275425,3319.3,3318.7,3.01319244]
[1762533886412,3.01278449,3319.2,3318.6,3.83858815]
[1762533886620,1.259712,3319.8,3318.6,3.83858815]
[1762533886621,0.3909512,3319.9,3318.7,0.4584]
[1762533886930,0.4982,3320.4,3319.3,3.01265788]
[1762533887078,0.4982,3320.4,3319.5,3.01242019]
[1762533887079,1.259712,3320.0,3319.5,3.01242019]
[1762533887277,3.01169561,3320.4,3319.6,3.01241113]
[1762533887474,3.0118415,3320.3,3319.7,3.01231142]
[1762533887693,3.01169249,3320.4,3319.8,3.01216532]
[1762533887894,0.4982,3320.7,3319.9,0.03012138]
[1762533888088,3.01077686,3320.6,3320.0,3.01198497]
[1762533888319,1.259712,3320.6,3320.1,3.01188764]
[1762533888612,0.1863,3320.9,3320.1,0.4584]
[1762533888815,0.6845,3320.9,3320.0,0.60242104]
[1762533889006,3.01155716,3320.6,3320.0,3.01198795]
[1762533889175,0.002,3321.3,3319.7,0.4584]
[1762533889176,0.005,3322.9,3321.9,3.01032541]
[1762533889380,0.005,3322.9,3322.2,4.26976557]
[1762533889582,0.005,3322.9,3322.2,1.17270053]
[1762533889821,0.005,3322.9,3322.3,1.2813989]
[1762533889980,0.005,3322.9,3322.3,0.4584]
[1762533890420,0.1593,3322.9,3322.2,0.1963]
[1762533890822,1.259712,3322.7,3322.0,0.1963]
[1762533891154,0.1593,3322.9,3322.0,0.1963]
[1762533891368,0.1593,3322.9,3322.2,3.01004326]
[1762533891568,1.419012,3322.9,3322.3,3.00996285]
[1762533891770,1.419012,3322.9,3322.2,3.010036]
[1762533892056,3.16874273,3322.9,3322.1,3.46847801]
[1762533892246,0.1593,3322.9,3322.2,3.01005207]
[1762533892444,3.00959015,3322.8,3322.0,0.1963]
[1762533892646,0.6575,3322.9,3321.7,0.1963]
[1762533893219,1.259712,3322.8,3322.1,3.01012498]
[1762533893424,0.6575,3322.9,3321.7,0.6547]
[1762533893651,0.6575,3322.9,3322.0,3.0101681]
[1762533893652,3.00958815,3322.8,3322.0,3.0101681]
[1762533893958,1.259712,3322.7,3322.1,3.01012648]
[1762533894168,1.919212,3322.9,3322.1,3.01012648]
[1762533894383,1.919212,3322.9,3321.7,3.66519322]
[1762533894580,1.919212,3322.9,3321.7,4.03165811]
[1762533894581,3.00986854,3322.5,3321.7,4.03165811]
[1762533894781,3.00988301,3322.4,3321.7,1.02121932]
[1762533895084,3.00981001,3322.5,3321.7,3.66520552]
[1762533895255,0.405504,3322.7,3321.7,0.6547]
[1762533895440,0.4982,3322.6,3321.3,0.4584]
[1762533895840,3.01012063,3322.2,3321.3,3.4692441]
[1762533896076,3.01007015,3322.2,3321.5,3.01066389]
[1762533896239,3.00999561,3322.3,3321.6,3.01058933]
[1762533896442,3.01006487,3322.2,3321.6,3.01058629]
[1762533896745,3.00998134,3322.3,3321.6,3.01058629]
[1762533896970,1.259712,3322.3,3321.7,3.01049968]
[1762533897211,0.4982,3322.6,3321.3,0.4584]
[1762533897416,1.259712,3322.7,3321.5,3.01068794]
[1762533897718,0.007,3322.9,3321.8,3.01041603]
[1762533897867,0.007,3322.9,3321.4,0.4584]
[1762533897868,0.007,3322.9,3322.5,3.00972105]
[1762533898219,0.007,3322.9,3322.6,3.00967779]
[1762533898511,0.1543,3322.8,3322.4,3.00986906]
[1762533898714,1.266712,3322.9,3322.5,3.00972475]
[1762533898715,0.007,3322.9,3322.5,3.00972475]
[1762533898896,0.007,3322.9,3322.4,3.00979249]
[1762533899415,0.1543,3322.8,3322.3,3.00990264]
[1762533899785,0.1543,3322.8,3322.0,0.4584]
[1762533899988,0.007,3322.9,3322.0,0.4584]
[1762533900187,0.007,3322.9,3322.3,3.009901]
[1762533900387,0.007,3322.9,3322.8,3.00951005]
[1762533900685,0.007,3322.9,3322.8,3.49741005]
[1762533900866,0.007,3322.9,3322.8,3.95581005]
[1762533901212,0.007,3322.9,3322.4,3.00987238]
[1762533901396,0.007,3322.9,3322.5,0.4584]
[1762533901595,0.007,3322.9,3322.4,0.4584]
[1762533901797,0.007,3322.9,3322.8,3.49741005]
[1762533902012,0.007,3322.9,3322.8,4.17820702]
[1762533902212,0.007,3322.9,3322.8,4.64211192]
[1762533902585,0.007,3322.9,3322.6,3.00962827]
[1762533902781,0.007,3322.9,3322.4,0.494]
[1762533902986,3.01644977,3322.9,3322.0,0.1504]
[1762533903198,0.1613,3322.9,3322.0,0.494]
[1762533903415,3.01648162,3322.9,3322.2,3.0099922]
[1762533903611,0.4983,3322.8,3321.7,3.01044168]
[1762533903811,3.00967337,3322.7,3321.5,3.01068794]
[1762533904015,3.00971048,3322.6,3322.0,3.01018299]
[1762533904211,0.1613,3322.9,3321.6,3.50458269]
[1762533904534,3.00988118,3322.4,3321.6,3.87008096]
[1762533904831,3.00999373,3322.3,3321.7,3.0105035]
[1762533905200,1.259712,3322.6,3321.3,3.01086923]
[1762533905510,0.47676781,3322.5,3321.4,0.40415383]
[1762533905714,4.74753038,3322.9,3321.3,0.494]
[1762533905715,1.259712,3322.3,3321.3,0.494]
[1762533905906,3.01022135,3322.1,3321.4,3.01071167]
[1762533906082,3.01029095,3322.0,3321.3,3.50484174]
[1762533906283,1.259712,3322.8,3321.3,0.37012583]
[1762533906284,0.4983,3322.2,3321.3,0.37012583]
[1762533906488,3.01057834,3321.7,3321.0,0.1963]
[1762533906789,3.01030758,3322.0,3321.0,0.6903]
[1762533907013,1.259712,3322.1,3321.1,0.0301105]
[1762533907215,3.0102016,3322.1,3321.4,3.01071337]
[1762533907406,3.01008898,3322.2,3321.5,0.03010687]
[1762533907605,3.01031118,3322.0,3321.2,3.01095989]
[1762533907936,1.259712,3322.0,3321.2,0.67122961]
[1762533908088,1.259712,3322.3,3321.3,0.52410869]
[1762533908290,1.665216,3322.8,3321.3,0.52410869]
[1762533908291,1.259712,3322.8,3321.3,0.52410869]
[1762533908636,1.259712,3322.2,3321.4,3.01076995]
[1762533908789,1.259712,3322.2,3321.0,0.1963]
[1762533908790,1.758012,3322.2,3321.0,0.1963]
[1762533908990,1.259712,3322.2,3321.5,3.01065657]
[1762533909222,0.4983,3322.6,3321.5,0.30106566]
[1762533909457,0.1613,3322.9,3321.6,0.52410597]
[1762533909596,0.1613,3322.9,3321.7,3.04061172]
[1762533909797,0.007,3322.9,3321.8,0.494]
[1762533910012,0.007,3322.9,3322.8,0.6807]
[1762533910240,0.007,3322.9,3322.8,3.69021005]
[1762533910451,0.007,3322.9,3322.8,4.85419213]
[1762533911330,0.0062,3322.9,3322.8,4.85419213]
[1762533912737,0.0062,3322.9,3322.8,4.88428723]
[1762533912936,0.002,3323.3,3323.2,3.0091478]
[1762533913237,0.002,3323.3,3323.2,4.94872275]
[1762533913546,0.002,3323.3,3323.2,6.70243475]
[1762533913908,0.005,3323.9,3323.8,3.0086046]
[1762533914241,0.005,3323.9,3322.8,1.35228208]
[1762533914242,3.00869512,3323.7,3322.8,1.35228208]
[1762533914544,0.1543,3323.8,3322.8,1.35228208]
[1762533914545,3.00878855,3323.6,3322.8,0.1883]
[1762533914851,0.1543,3323.8,3322.9,0.31978759]
[1762533914996,0.005,3323.9,3322.9,0.494]
[1762533915198,0.1593,3323.9,3322.9,0.6444]
[1762533915398,0.1593,3323.9,3322.8,0.1883]
[1762533915598,3.00893784,3323.5,3322.6,3.00963248]
[1762533915799,0.6576,3323.9,3322.5,0.6823]
[1762533915800,1.917312,3323.9,3322.7,0.36919325]
[1762533916046,0.2055,3322.6,3321.5,0.494]
[1762533916253,3.16402652,3322.6,3321.8,0.1504]
[1762533916463,3.16402652,3322.6,3321.3,0.001]
[1762533916464,0.4983,3322.5,3321.3,0.001]
[1762533916603,0.1543,3321.9,3321.3,0.001]
[1762533916798,1.259712,3321.8,3321.3,0.001]
[1762533917001,3.01077858,3321.4,3321.3,0.001]
[1762533917202,5.90241163,3321.4,3321.3,0.001]
[1762533917806,5.90241163,3321.4,3320.9,0.001]
[1762533917807,0.405504,3321.1,3320.9,0.001]
[1762533918006,4.67662925,3320.7,3320.6,0.001]
[1762533918239,5.17492925,3320.7,3320.6,0.001]
[1762533918548,4.76942525,3320.7,3320.6,0.001]
[1762533918910,1.758012,3320.7,3320.6,0.001]
[1762533919105,1.259712,3320.7,3320.6,0.001]
[1762533919408,0.1543,3321.2,3320.6,0.30226519]
[1762533919631,0.1543,3321.2,3320.7,0.03011413]
[1762533919831,0.6526,3321.2,3320.6,0.001]
[1762533920048,3.011323,3320.8,3320.6,0.001]
[1762533920258,0.6526,3321.2,3320.6,0.001]
[1762533920259,0.4983,3321.1,3320.6,0.001]
[1762533920742,3.01138813,3320.8,3320.6,0.001]
[1762533920946,3.0113461,3320.8,3320.6,0.001]
[1762533921110,3.01141325,3320.7,3320.6,0.001]
[1762533921310,5.27889445,3320.7,3320.6,0.001]
[1762533921556,5.27889445,3320.7,3320.1,0.005]
[1762533921557,5.77719445,3320.7,3320.1,0.005]
[1762533921857,4.67708275,3320.2,3320.1,0.005]
[1762533922020,1.259712,3320.2,3320.1,0.005]
[1762533922814,1.259712,3320.6,3320.1,0.005]
[1762533923131,1.259712,3320.8,3320.1,3.20517805]
[1762533923336,1.259712,3320.7,3320.1,0.81502963]
[1762533923541,1.259712,3320.5,3320.1,0.005]
[1762533924350,3.01133695,3320.8,3320.1,0.005]
[1762533924351,3.01186675,3320.2,3320.1,0.005]
[1762533924653,3.01162222,3320.5,3320.1,0.005]
[1762533924839,0.405504,3320.9,3320.1,0.005]
[1762533925013,3.01186675,3320.2,3320.1,0.005]
[1762533925219,1.259712,3320.7,3320.1,0.005]
[1762533925220,3.01181011,3320.3,3320.1,0.005]
[1762533925411,4.27157875,3320.2,3320.1,0.005]
[1762533925753,1.259712,3320.2,3320.1,0.005]
[1762533926455,4.76987875,3320.2,3320.1,0.005]
[1762533926758,4.27157875,3320.2,3320.1,0.005]
[1762533926912,1.259712,3320.2,3320.1,0.005]
[1762533927116,4.27157875,3320.2,3320.1,0.005]
[1762533927754,5.90371703,3320.2,3320.1,0.005]
[1762533928335,5.90371703,3320.2,3319.1,0.005]